fUST/lending_fUST_20250530
["ID","MTS","AMOUNT","RATE_DAILY","PERIOD"]
[363049639,1748560257557,-1533.33,0.00022191,2]
[363049640,1748560257567,-816.31,0.00022191,2]
[363049641,1748560257576,-1208.12,0.00022191,2]
[363049642,1748560257586,-906.13,0.00022191,2]
[363049643,1748560257595,-484.44,0.00022191,2]
[363049644,1748560257605,-5881.26,0.00022191,2]
[363049645,1748560257615,-430.0,0.00022191,2]
[363049646,1748560257624,-831.06,0.00022191,2]
[363049647,1748560257634,-430.0,0.00022191,2]
[363049648,1748560257644,-532.49,0.00022191,2]
[363049649,1748560257654,-430.0,0.00022191,2]
[363049650,1748560257663,-653.52,0.00022191,2]
[363049651,1748560257673,-430.0,0.00022191,2]
[363049652,1748560257683,-1066.58,0.00022191,2]
[363049653,1748560257692,-1238.69,0.00022191,2]
[363049654,1748560257702,-2587.05,0.00022191,2]
[363049655,1748560257712,-2017.87,0.00022191,2]
[363049656,1748560257721,-641.83,0.00022191,2]
[363049657,1748560257730,-4011.16,0.00022191,2]
[363049658,1748560257740,-739.18,0.00022191,2]
[363049659,1748560257750,-726.26,0.00022191,2]
[363049660,1748560257759,-430.0,0.00022191,2]
[363049661,1748560257768,-791.38,0.00022191,2]
[363049662,1748560257778,-430.0,0.00022191,2]
[363049663,1748560257787,-2796.38,0.00022191,2]
[363049664,1748560257796,-1387.58,0.00022191,2]
[363049665,1748560257806,-430.0,0.00022191,2]
[363049666,1748560257815,-430.0,0.00022191,2]
[363049667,1748560257824,-430.0,0.00022191,2]
[363049668,1748560257833,-553.95,0.00022191,2]
[363049669,1748560257842,-156.23981995,0.00022191,2]
[363049670,1748560257851,-467.19,0.00022191,2]
[363049671,1748560257861,-1362.85,0.00022191,2]
[363049672,1748560257870,-430.0,0.00022191,2]
[363049674,1748560257879,-1730.84,0.00022191,2]
[363049675,1748560257889,-1417.51,0.00022191,2]
[363049678,1748560257899,-434.34232923,0.00022191,2]
[363049688,1748560257985,-430.0,0.00022191,2]
[363049690,1748560257994,-430.0,0.00022191,2]
[363049691,1748560258004,-430.0,0.00022191,2]
[363049693,1748560258013,-700.0,0.0002226,2]
[363049695,1748560258023,-1437.20728948,0.00022314,7]
[363049697,1748560258032,-430.0,0.00022465,2]
[363049699,1748560258041,-430.0,0.00022465,2]
[363049701,1748560258049,-500.43,0.00022465,2]
[363049703,1748560258058,-632.62,0.00022465,2]
[363049705,1748560258068,-430.0,0.00022465,2]
[363049707,1748560258077,-430.0,0.00022465,2]
[363049709,1748560258086,-711.04,0.00022465,2]
[363049711,1748560258095,-441.63519756,0.00022465,2]
[363049713,1748560258104,-430.0,0.00022465,2]
[363049715,1748560258113,-508.16,0.00022465,2]
[363049717,1748560258122,-575.18,0.00022465,2]
[363049719,1748560258131,-430.0,0.00022465,2]
[363049721,1748560258140,-480.27,0.00022465,2]
[363049723,1748560258149,-981.66,0.00022465,2]
[363049725,1748560258160,-592.44,0.00022465,2]
[363049727,1748560258169,-430.0,0.00022465,2]
[363049728,1748560258178,-2012.87,0.00022465,2]
[363049729,1748560258188,-430.0,0.00022465,2]
[363049730,1748560258197,-619.77,0.00022465,2]
[363049731,1748560258206,-2347.16,0.00022465,2]
[363049732,1748560258215,-430.0,0.00022465,2]
[363049733,1748560258224,-1712.96,0.00022465,2]
[363049734,1748560258233,-1533.33,0.00022465,2]
[363049735,1748560258242,-816.31,0.00022465,2]
[363049736,1748560258252,-1208.12,0.00022465,2]
[363049737,1748560258261,-906.13,0.00022465,2]
[363049738,1748560258270,-484.44,0.00022465,2]
[363049739,1748560258279,-532.96677465,0.00022465,2]
[363049740,1748560258288,-5881.26,0.00022465,2]
[363049741,1748560258297,-831.06,0.00022465,2]
[363049742,1748560258306,-430.0,0.00022465,2]
[363049743,1748560258315,-532.49,0.00022465,2]
[363049744,1748560258325,-430.0,0.00022465,2]
[363049745,1748560258334,-653.52,0.00022465,2]
[363049746,1748560258343,-430.0,0.00022465,2]
[363049747,1748560258352,-1066.58,0.00022465,2]
[363049748,1748560258361,-1238.69,0.00022465,2]
[363049749,1748560258370,-2587.05,0.00022465,2]
[363049750,1748560258379,-2017.87,0.00022465,2]
[363049751,1748560258388,-641.83,0.00022465,2]
[363049752,1748560258402,-4011.16,0.00022465,2]
[363049753,1748560258412,-739.18,0.00022465,2]
[363049754,1748560258422,-726.26,0.00022465,2]
[363049755,1748560258433,-430.0,0.00022465,2]
[363049756,1748560258444,-791.38,0.00022465,2]
[363049757,1748560258453,-430.0,0.00022465,2]
[363049758,1748560258463,-2796.38,0.00022465,2]
[363049759,1748560258473,-1387.58,0.00022465,2]
[363049760,1748560258483,-430.0,0.00022465,2]
[363049761,1748560258492,-430.0,0.00022465,2]
[363049762,1748560258502,-430.0,0.00022465,2]
[363049763,1748560258511,-553.95,0.00022465,2]
[363049764,1748560258521,-467.19,0.00022465,2]
[363049765,1748560258530,-1362.85,0.00022465,2]
[363049766,1748560258539,-430.0,0.00022465,2]
[363049767,1748560258548,-1730.84,0.00022465,2]
[363049768,1748560258558,-1417.51,0.00022465,2]
[363049769,1748560258568,-259.480128,0.00022465,7]
[363049770,1748560258578,-259.480128,0.00022465,7]
[363049771,1748560258587,-151.0,0.00022465,7]
[363049772,1748560258597,-430.0,0.00022465,2]
[363049773,1748560258606,-430.0,0.00022465,2]
[363049774,1748560258616,-430.0,0.00022465,2]
[363049775,1748560258625,-190.05658334,0.00022476,2]
[363049776,1748560258635,-1437.20728948,0.00022486,7]
[363049777,1748560258644,-357.49495271,0.00022558,2]
[363049778,1748560258654,-637.0,0.000226,2]
[363049779,1748560258663,-1437.20728948,0.00022659,7]
[363049780,1748560258672,-500.0,0.00022739,8]
[363049781,1748560258682,-500.0,0.00022739,8]
[363049782,1748560258692,-151.0,0.00022739,2]
[363049784,1748560258702,-213.47174277,0.00022739,2]
[363049785,1748560258711,-430.0,0.00022739,2]
[363049786,1748560258720,-500.43,0.00022739,2]
[363049787,1748560258729,-632.62,0.00022739,2]
[363049789,1748560258739,-430.0,0.00022739,2]
[363049791,1748560258747,-430.0,0.00022739,2]
[363049793,1748560258756,-711.04,0.00022739,2]
[363049795,1748560258766,-430.0,0.00022739,2]
[363049797,1748560258775,-151.0,0.00022739,7]
[363049799,1748560258784,-214.651804,0.00022739,7]
[363049801,1748560258793,-575.18,0.00022739,2]
[363049803,1748560258802,-550.0,0.00022739,2]
[363049805,1748560258811,-480.27,0.00022739,2]
[363049807,1748560258820,-981.66,0.00022739,2]
[363049809,1748560258829,-592.44,0.00022739,2]
[363049811,1748560258838,-430.0,0.00022739,2]
[363049812,1748560258847,-2012.87,0.00022739,2]
[363049814,1748560258856,-430.0,0.00022739,2]
[363049816,1748560258865,-619.77,0.00022739,2]
[363049818,1748560258874,-2347.16,0.00022739,2]
[363049820,1748560258883,-430.0,0.00022739,2]
[363049822,1748560258892,-1712.96,0.00022739,2]
[363049824,1748560258901,-1533.33,0.00022739,2]
[363049826,1748560258912,-816.31,0.00022739,2]
[363049828,1748560258920,-1208.12,0.00022739,2]
[363049830,1748560258930,-906.13,0.00022739,2]
[363049832,1748560258939,-484.44,0.00022739,2]
[363049834,1748560258949,-5881.26,0.00022739,2]
[363049836,1748560258958,-831.06,0.00022739,2]
[363049838,1748560258967,-430.0,0.00022739,2]
[363049840,1748560258976,-532.49,0.00022739,2]
[363049841,1748560258985,-430.0,0.00022739,2]
[363049843,1748560258994,-653.52,0.00022739,2]
[363049845,1748560259003,-430.0,0.00022739,2]
[363049847,1748560259012,-1066.58,0.00022739,2]
[363049849,1748560259022,-151.0,0.00022739,7]
[363049851,1748560259032,-1238.69,0.00022739,2]
[363049853,1748560259041,-2587.05,0.00022739,2]
[363049855,1748560259050,-2017.87,0.00022739,2]
[363049857,1748560259059,-641.83,0.00022739,2]
[363049859,1748560259068,-4011.16,0.00022739,2]
[363049861,1748560259078,-739.18,0.00022739,2]
[363049863,1748560259089,-726.26,0.00022739,2]
[363049865,1748560259098,-430.0,0.00022739,2]
[363049867,1748560259107,-791.38,0.00022739,2]
[363049869,1748560259115,-430.0,0.00022739,2]
[363049870,1748560259125,-2796.38,0.00022739,2]
[363049872,1748560259134,-692.983502,0.00022739,7]
[363049874,1748560259143,-151.0,0.00022739,7]
[363049876,1748560259152,-1387.58,0.00022739,2]
[363049878,1748560259162,-692.983502,0.00022739,7]
[363049880,1748560259171,-430.0,0.00022739,2]
[363049882,1748560259180,-284.527118,0.00022739,7]
[363049884,1748560259190,-151.0,0.00022739,7]
[363049886,1748560259200,-430.0,0.00022739,2]
[363049888,1748560259209,-430.0,0.00022739,2]
[363049890,1748560259218,-553.95,0.00022739,2]
[363049892,1748560259227,-467.19,0.00022739,2]
[363049894,1748560259236,-1362.85,0.00022739,2]
[363049898,1748560259317,-430.0,0.00022739,2]
[363049899,1748560259327,-1730.84,0.00022739,2]
[363049900,1748560259336,-1417.51,0.00022739,2]
[363049901,1748560259345,-430.0,0.00022739,2]
[363049902,1748560259355,-430.0,0.00022739,2]
[363049903,1748560259364,-430.0,0.00022739,2]
[363049904,1748560259374,-5000.0,0.00022753,2]
[363049905,1748560259383,-575.0,0.00022775,2]
[363049906,1748560259395,-1437.20728948,0.00022831,8]
[363049907,1748560259405,-500.0,0.00022873,2]
[363049908,1748560259415,-151.0,0.00022879,7]
[363049909,1748560259424,-151.0,0.00022879,7]
[363049910,1748560259434,-151.0,0.00022879,7]
[363049911,1748560259444,-151.0,0.00022879,7]
[363049912,1748560259454,-151.0,0.00022879,7]
[363049913,1748560259464,-151.0,0.00022879,7]
[363049914,1748560259475,-151.0,0.00022879,7]
[363049915,1748560259484,-151.0,0.00022879,7]
[363049916,1748560259493,-155.087004,0.00022879,7]
[363049917,1748560259503,-155.087004,0.00022879,7]
[363049918,1748560259512,-151.0,0.00022879,7]
[363049919,1748560259521,-1921.727291,0.00022879,7]
[363049920,1748560259530,-151.0,0.00022879,7]
[363049921,1748560259539,-1921.727291,0.00022879,7]
[363049922,1748560259549,-2212.396848,0.00022879,7]
[363049923,1748560259559,-2212.396848,0.00022879,7]
[363049924,1748560259569,-677.360411,0.00022879,7]
[363049925,1748560259579,-677.360411,0.00022879,7]
[363049926,1748560259588,-151.0,0.00022879,7]
[363049927,1748560259598,-195.43434,0.00022879,7]
[363049928,1748560259607,-195.43434,0.00022879,7]
[363049929,1748560259616,-672.045038,0.00022879,7]
[363049930,1748560259625,-672.045038,0.00022879,7]
[363049931,1748560259634,-184.636821,0.00022879,7]
[363049932,1748560259643,-184.636821,0.00022879,7]
[363049933,1748560259652,-198.998925,0.00022879,7]
[363049934,1748560259661,-198.998925,0.00022879,7]
[363049935,1748560259671,-151.0,0.00022879,7]
[363049936,1748560259680,-151.0,0.00022879,7]
[363049937,1748560259689,-151.0,0.00022879,7]
[363049938,1748560259697,-366.021581,0.00022879,7]
[363049939,1748560259706,-366.021581,0.00022879,7]
[363049940,1748560259715,-151.0,0.00022879,7]
[363049941,1748560259724,-151.0,0.00022879,7]
[363049942,1748560259733,-877.348335,0.00022879,2]
[363049943,1748560259742,-877.348335,0.00022879,2]
[363049944,1748560259751,-151075.91018655,0.00022879,2]
[363049945,1748560259760,-363.4766508,0.00022904,2]
[363049946,1748560259769,-1201.15622334,0.00022913,2]
[363049947,1748560259778,-1349.653189,0.00022929,3]
[363049948,1748560259787,-423.31762986,0.00023,3]
[363049949,1748560259796,-4657.16,0.00023,7]
[363049950,1748560259806,-31929.89,0.00023,2]
[363049951,1748560259815,-6057.5,0.00023,2]
[363049952,1748560259823,-20024.24147969,0.00023,2]
[363050006,1748561033097,857.602882,0.00013699,2]
[363050009,1748561156125,-1166.28705234,0.00017971,2]
[363050010,1748561156148,-201.04505605,0.00018153,2]
[363050013,1748561207086,-228.38635021,0.00018153,2]
[363050014,1748561240100,-297.02491216,0.00018152,2]
[363050015,1748561242078,-2.97508784,0.00018152,2]
[363050016,1748561242101,-1133.17173215,0.00018153,2]
[363050017,1748561244112,-1818.93738368,0.00018153,2]
[363050018,1748561245073,-874.7748,0.00018153,2]
[363050019,1748561247134,-3630.12630881,0.00018153,2]
[363050020,1748561248078,-3249.03544042,0.00018153,2]
[363050021,1748561248107,-1305.50287254,0.00018153,2]
[363050023,1748561304632,1714.09599625,0.00013,2]
[363050024,1748561307376,280.34756701,0.0001,2]
[363050026,1748561316888,575.84784357,0.000149,2]
[363050027,1748561317133,1000.0,0.0001,2]
[363050028,1748561320409,550.75699775,0.00015,2]
[363050029,1748561346103,-1119.49548991,0.00018,2]
[363050030,1748561346127,-7648.0941373,0.00018153,2]
[363050031,1748561350138,-231.62294694,0.00018153,2]
[363050032,1748561350162,-300.0,0.00018314,2]
[363050033,1748561350184,-921.71623427,0.00018315,2]
[363050035,1748561374078,-41185.22549904,0.00017,2]
[363050069,1748561432716,-1857.07627,0.00017,2]
[363050070,1748561432727,-392.50674614,0.00017,2]
[363050071,1748561432736,-183.4496969,0.00018103,2]
[363050072,1748561432746,-300.0,0.00018314,2]
[363050073,1748561432755,-9078.28376573,0.00018315,2]
[363050074,1748561432765,-322.00703641,0.000189,2]
[363050075,1748561432775,-642.65163879,0.00019078,2]
[363050076,1748561432784,-6404.0441001,0.00019177,2]
[363050080,1748561438612,-1561.50032071,0.00019177,2]
[363050081,1748561438622,-426.01101156,0.00019177,2]
[363050082,1748561438631,-500.0,0.00019177,2]
[363050083,1748561438640,-98.48588505,0.00019177,2]
[363050084,1748561438652,-401.51411495,0.00019177,2]
[363050085,1748561438664,-539.53262777,0.00019177,2]
[363050086,1748561438673,-500.0,0.00019177,2]
[363050087,1748561438683,-500.0,0.00019177,2]
[363050088,1748561438692,-500.0,0.00019177,2]
[363050089,1748561438701,-500.0,0.00019177,2]
[363050090,1748561438711,-500.0,0.00019177,2]
[363050091,1748561438720,-360.04301314,0.00019177,2]
[363050092,1748561438730,-218.12260123,0.00019177,2]
[363050093,1748561438742,-281.87739877,0.00019177,2]
[363050094,1748561438751,-482.41067738,0.00019177,2]
[363050095,1748561438771,-17.58932262,0.00019177,2]
[363050096,1748561438780,-400.0,0.00019177,2]
[363050097,1748561438790,-225.05027465,0.00019177,2]
[363050098,1748561438799,-408.27113938,0.00019177,2]
[363050099,1748561438809,-430.0,0.00019178,2]
[363050100,1748561438821,-430.0,0.00019178,2]
[363050101,1748561438830,-430.0,0.00019178,2]
[363050102,1748561438839,-430.0,0.00019178,2]
[363050103,1748561438849,-430.0,0.00019178,2]
[363050104,1748561438859,-430.0,0.00019178,2]
[363050105,1748561438869,-430.0,0.00019178,2]
[363050106,1748561438879,-430.0,0.00019178,2]
[363050107,1748561438889,-430.0,0.00019178,2]
[363050108,1748561438898,-430.0,0.00019178,2]
[363050109,1748561438909,-430.0,0.00019178,2]
[363050110,1748561438918,-430.0,0.00019178,2]
[363050111,1748561438928,-430.0,0.00019178,2]
[363050112,1748561438937,-430.0,0.00019178,2]
[363050113,1748561438947,-430.0,0.00019178,2]
[363050114,1748561438956,-400.0,0.00019178,2]
[363050115,1748561438965,-430.0,0.00019178,2]
[363050116,1748561438975,-236.55599469,0.00019178,2]
[363050117,1748561438985,-473.80888928,0.00019178,2]
[363050118,1748561438994,-430.0,0.00019178,2]
[363050119,1748561439003,-450.0,0.00019178,2]
[363050120,1748561439157,-430.0,0.00019178,2]
[363050121,1748561439167,-430.0,0.00019178,2]
[363050122,1748561439176,-430.0,0.00019178,2]
[363050123,1748561439186,-430.0,0.00019178,2]
[363050125,1748561439196,-430.0,0.00019178,2]
[363050127,1748561439206,-430.0,0.00019178,2]
[363050129,1748561439215,-234.08695977,0.00019178,2]
[363050131,1748561439225,-229.06075931,0.00019178,2]
[363050133,1748561439234,-400.0,0.00019178,2]
[363050135,1748561439243,-430.0,0.00019178,2]
[363050137,1748561439253,-430.0,0.00019178,2]
[363050139,1748561439265,-430.0,0.00019178,2]
[363050141,1748561439274,-430.0,0.00019178,2]
[363050143,1748561439283,-430.0,0.00019178,2]
[363050145,1748561439293,-430.0,0.00019178,2]
[363050147,1748561439303,-430.0,0.00019178,2]
[363050149,1748561439312,-430.0,0.00019178,2]
[363050151,1748561439322,-430.0,0.00019178,2]
[363050153,1748561439331,-430.0,0.00019178,2]
[363050155,1748561439340,-430.0,0.00019178,2]
[363050157,1748561439349,-618.03591607,0.00019178,2]
[363050159,1748561439359,-570.74,0.00019178,2]
[363050161,1748561439369,-340.0,0.00019178,2]
[363050163,1748561439378,-430.0,0.00019178,2]
[363050165,1748561439387,-430.0,0.00019178,2]
[363050167,1748561439396,-430.0,0.00019178,2]
[363050169,1748561439405,-430.0,0.00019178,2]
[363050171,1748561439415,-430.0,0.00019178,2]
[363050173,1748561439424,-462.18,0.00019178,2]
[363050175,1748561439433,-430.0,0.00019178,2]
[363050177,1748561439442,-151.93960081,0.00019178,2]
[363050179,1748561439451,-260.73266921,0.00019178,2]
[363050181,1748561439461,-430.0,0.00019178,2]
[363050183,1748561439469,-430.0,0.00019178,2]
[363050184,1748561439479,-430.0,0.00019178,2]
[363050186,1748561439488,-430.0,0.00019178,2]
[363050189,1748561439499,-430.0,0.00019178,2]
[363050190,1748561439507,-430.0,0.00019178,2]
[363050192,1748561439517,-430.0,0.00019178,2]
[363050194,1748561439527,-430.0,0.00019178,2]
[363050196,1748561439537,-430.0,0.00019178,2]
[363050198,1748561439547,-430.0,0.00019178,2]
[363050201,1748561439558,-430.0,0.00019178,2]
[363050202,1748561439567,-430.0,0.00019178,2]
[363050204,1748561439578,-430.0,0.00019178,2]
[363050206,1748561439588,-430.0,0.00019178,2]
[363050208,1748561439598,-430.0,0.00019178,2]
[363050210,1748561439608,-430.0,0.00019178,2]
[363050213,1748561439618,-430.0,0.00019178,2]
[363050215,1748561439628,-430.0,0.00019178,2]
[363050216,1748561439638,-430.0,0.00019178,2]
[363050219,1748561439648,-430.0,0.00019178,2]
[363050221,1748561439659,-430.0,0.00019178,2]
[363050222,1748561439669,-430.0,0.00019178,2]
[363050224,1748561439679,-430.0,0.00019178,2]
[363050227,1748561439689,-490.83,0.00019178,2]
[363050229,1748561439698,-430.0,0.00019178,2]
[363050230,1748561439709,-430.0,0.00019178,2]
[363050232,1748561439719,-430.0,0.00019178,2]
[363050234,1748561439729,-430.0,0.00019178,2]
[363050236,1748561439738,-430.0,0.00019178,2]
[363050238,1748561439748,-430.0,0.00019178,2]
[363050240,1748561439757,-1003.69,0.00019178,2]
[363050242,1748561439767,-500.0,0.00019178,2]
[363050244,1748561439777,-553.75276343,0.00019178,2]
[363050246,1748561439787,-500.0,0.00019178,2]
[363050248,1748561439796,-430.0,0.00019178,2]
[363050250,1748561439806,-430.0,0.00019178,2]
[363050252,1748561439818,-430.0,0.00019178,2]
[363050254,1748561439827,-527.34,0.00019178,2]
[363050256,1748561439837,-430.0,0.00019178,2]
[363050258,1748561439846,-510.63606479,0.00019178,2]
[363050260,1748561439857,-615.59,0.00019178,2]
[363050262,1748561439867,-430.0,0.00019178,2]
[363050264,1748561439876,-430.0,0.00019178,2]
[363050266,1748561439886,-430.0,0.00019178,2]
[363050268,1748561439897,-434.28943671,0.00019178,2]
[363050271,1748561439909,-1465.79,0.00019178,2]
[363050272,1748561439919,-430.0,0.00019178,2]
[363050274,1748561439928,-592.81,0.00019178,2]
[363050276,1748561439938,-1359.89,0.00019178,2]
[363050278,1748561439948,-1341.51,0.00019178,2]
[363050280,1748561439957,-490.0,0.00019178,2]
[363050282,1748561439968,-430.0,0.00019178,2]
[363050284,1748561439978,-430.0,0.00019178,2]
[363050287,1748561439988,-430.0,0.00019178,2]
[363050288,1748561439997,-430.0,0.00019178,2]
[363050290,1748561440007,-1254.11,0.00019178,2]
[363050292,1748561440017,-430.0,0.00019178,2]
[363050295,1748561440026,-430.0,0.00019178,2]
[363050296,1748561440036,-798.51,0.00019178,2]
[363050298,1748561440045,-214.45790829,0.00019178,2]
[363050300,1748561440054,-436.17,0.00019178,2]
[363050303,1748561440064,-565.15,0.00019178,2]
[363050304,1748561440073,-430.0,0.00019178,2]
[363050307,1748561440083,-430.0,0.00019178,2]
[363050309,1748561440092,-430.0,0.00019178,2]
[363050311,1748561440102,-430.0,0.00019178,2]
[363050313,1748561440112,-430.0,0.00019178,2]
[363050315,1748561440121,-4331.66,0.00019178,2]
[363050316,1748561440131,-430.0,0.00019178,2]
[363050319,1748561440140,-543.43,0.00019178,2]
[363050321,1748561440150,-430.0,0.00019178,2]
[363050324,1748561440162,-1894.21,0.00019178,2]
[363050326,1748561440171,-430.0,0.00019178,2]
[363050327,1748561440180,-430.0,0.00019178,2]
[363050329,1748561440190,-430.0,0.00019178,2]
[363050331,1748561440200,-430.0,0.00019178,2]
[363050333,1748561440209,-430.0,0.00019178,2]
[363050335,1748561440219,-430.0,0.00019178,2]
[363050337,1748561440228,-430.0,0.00019178,2]
[363050339,1748561440239,-430.0,0.00019178,2]
[363050341,1748561440248,-430.0,0.00019178,2]
[363050343,1748561440258,-3074.02,0.00019178,2]
[363050345,1748561440267,-430.0,0.00019178,2]
[363050347,1748561440277,-430.0,0.00019178,2]
[363050349,1748561440286,-430.0,0.00019178,2]
[363050351,1748561440296,-430.0,0.00019178,2]
[363050353,1748561440305,-430.0,0.00019178,2]
[363050355,1748561440314,-588.86,0.00019178,2]
[363050357,1748561440324,-1588.17,0.00019178,2]
[363050359,1748561440333,-601.77,0.00019178,2]
[363050361,1748561440342,-886.19,0.00019178,2]
[363050363,1748561440351,-500.0,0.00019178,2]
[363050365,1748561440360,-430.0,0.00019178,2]
[363050367,1748561440370,-430.0,0.00019178,2]
[363050369,1748561440379,-430.0,0.00019178,2]
[363050371,1748561440389,-2587.31,0.00019178,2]
[363050373,1748561440399,-430.0,0.00019178,2]
[363050375,1748561440410,-1080.19,0.00019178,2]
[363050377,1748561440420,-430.0,0.00019178,2]
[363050379,1748561440429,-430.0,0.00019178,2]
[363050381,1748561440439,-430.0,0.00019178,2]
[363050383,1748561440449,-1472.51,0.00019178,2]
[363050385,1748561440459,-430.0,0.00019178,2]
[363050387,1748561440467,-430.0,0.00019178,2]
[363050389,1748561440477,-430.0,0.00019178,2]
[363050391,1748561440486,-430.0,0.00019178,2]
[363050393,1748561440495,-624.8,0.00019178,2]
[363050395,1748561440504,-430.0,0.00019178,2]
[363050397,1748561440513,-496.19521263,0.00019178,2]
[363050399,1748561440522,-430.0,0.00019178,2]
[363050401,1748561440531,-430.0,0.00019178,2]
[363050402,1748561440540,-430.0,0.00019178,2]
[363050404,1748561440549,-542.4125288,0.00019178,2]
[363050406,1748561440558,-430.0,0.00019178,2]
[363050408,1748561440568,-569.52,0.00019178,2]
[363050410,1748561440577,-430.0,0.00019178,2]
[363050412,1748561440587,-430.0,0.00019178,2]
[363050414,1748561440596,-438.61116084,0.00019178,2]
[363050416,1748561440605,-430.0,0.00019178,2]
[363050418,1748561440614,-430.0,0.00019178,2]
[363050419,1748561440624,-430.0,0.00019178,2]
[363050421,1748561440633,-430.0,0.00019178,2]
[363050423,1748561440642,-430.0,0.00019178,2]
[363050425,1748561440651,-960.07,0.00019178,2]
[363050427,1748561440664,-430.0,0.00019178,2]
[363050429,1748561440673,-430.0,0.00019178,2]
[363050431,1748561440684,-430.0,0.00019178,2]
[363050433,1748561440694,-430.0,0.00019178,2]
[363050435,1748561440703,-430.0,0.00019178,2]
[363050437,1748561440712,-430.0,0.00019178,2]
[363050439,1748561440722,-430.0,0.00019178,2]
[363050441,1748561440731,-1196.95,0.00019178,2]
[363050443,1748561440741,-430.0,0.00019178,2]
[363050445,1748561440750,-448.3893073,0.00019178,2]
[363050447,1748561440759,-430.0,0.00019178,2]
[363050449,1748561440769,-430.0,0.00019178,2]
[363050451,1748561440779,-430.0,0.00019178,2]
[363050453,1748561440788,-430.0,0.00019178,2]
[363050455,1748561440797,-430.0,0.00019178,2]
[363050457,1748561440806,-430.0,0.00019178,2]
[363050459,1748561440819,-961.28,0.00019178,2]
[363050461,1748561440828,-400.0,0.00019178,2]
[363050463,1748561440838,-430.0,0.00019178,2]
[363050465,1748561440847,-430.0,0.00019178,2]
[363050467,1748561440857,-430.0,0.00019178,2]
[363050469,1748561440867,-430.0,0.00019178,2]
[363050471,1748561440876,-430.0,0.00019178,2]
[363050472,1748561440886,-430.0,0.00019178,2]
[363050474,1748561440896,-430.0,0.00019178,2]
[363050476,1748561440907,-320.88518851,0.00019178,2]
[363050478,1748561440916,-430.0,0.00019178,2]
[363050480,1748561440926,-430.0,0.00019178,2]
[363050482,1748561440935,-430.0,0.00019178,2]
[363050484,1748561440944,-430.0,0.00019178,2]
[363050486,1748561440955,-430.0,0.00019178,2]
[363050488,1748561440964,-430.0,0.00019178,2]
[363050490,1748561440974,-430.0,0.00019178,2]
[363050492,1748561440983,-430.0,0.00019178,2]
[363050494,1748561440992,-2203.29,0.00019178,2]
[363050496,1748561441002,-152.282009,0.00019178,2]
[363050499,1748561441012,-430.0,0.00019452,2]
[363050500,1748561441022,-430.0,0.00019452,2]
[363050502,1748561441031,-430.0,0.00019452,2]
[363050504,1748561441040,-430.0,0.00019452,2]
[363050507,1748561441050,-430.0,0.00019452,2]
[363050508,1748561441059,-430.0,0.00019452,2]
[363050510,1748561441068,-430.0,0.00019452,2]
[363050512,1748561441077,-430.0,0.00019452,2]
[363050514,1748561441086,-430.0,0.00019452,2]
[363050516,1748561441095,-430.0,0.00019452,2]